bitfinex/quotes_ETHUSD_20250626
["timestamp","ask_amount","ask_price","bid_price","bid_amount"]
[1750907386515,0.1992,2509.7,2509.2,0.1992]
[1750907386684,0.991,2509.7,2509.2,0.1992]
[1750907387208,0.991,2509.7,2508.2,14.28313868]
[1750907387209,10.7918,2509.7,2508.6,8.363]
[1750907387408,0.1992,2509.6,2509.3,3.98516188]
[1750907387787,0.1992,2509.6,2509.2,0.1992]
[1750907387989,0.1992,2509.6,2509.2,4.18452951]
[1750907388402,0.1992,2509.6,2509.3,3.98515056]
[1750907388618,10.7918,2509.7,2509.2,3.98528062]
[1750907389521,10.7918,2509.7,2509.3,3.98513796]
[1750907390219,10.7918,2509.7,2508.6,8.363]
[1750907390444,0.8339,2510.1,2509.4,3.98497573]
[1750907390593,0.8339,2510.1,2509.6,3.98456273]
[1750907390787,10.8339,2510.1,2509.5,3.98479319]
[1750907391113,10.8339,2510.1,2508.8,9.2175]
[1750907391309,10.8339,2510.1,2509.5,3.98474612]
[1750907391498,0.33297272,2510.0,2509.6,3.9846679]
[1750907391705,0.33297272,2510.0,2509.5,3.98472339]
[1750907393021,0.33297272,2510.0,2508.8,13.20336397]
[1750907393232,0.33297272,2510.0,2509.6,3.98464423]
[1750907393524,0.33297272,2510.0,2509.7,3.98450268]
[1750907394030,0.33297272,2510.0,2509.8,3.98425365]
[1750907394190,0.8339,2510.1,2509.8,3.98425365]
[1750907394394,0.8339,2510.1,2509.5,3.98485754]
[1750907394709,0.8339,2510.1,2509.9,3.98406616]
[1750907394904,0.8339,2510.1,2509.4,9.1479]
[1750907395114,0.8339,2510.1,2509.8,3.98422344]
[1750907397345,0.8339,2510.1,2509.7,3.98447792]
[1750907397634,1.20789,2510.1,2509.7,3.46833927]
[1750907398331,1.20789,2510.1,2509.2,8.324]
[1750907398627,1.40709,2510.1,2509.6,0.1992]
[1750907398832,1.40709,2510.1,2509.6,4.18383924]
[1750907399037,1.40709,2510.1,2509.6,0.1992]
[1750907399330,1.140709,2510.0,2509.6,0.1992]
[1750907399628,1.40709,2510.1,2509.6,0.1992]
[1750907401600,0.8498,2510.0,2509.0,8.314]
[1750907401802,0.1992,2509.7,2509.2,0.1992]
[1750907402002,2.834,2509.6,2509.2,0.1992]
[1750907402237,0.8498,2509.5,2509.2,0.1992]
[1750907402836,1.2381,2509.5,2509.2,0.1992]
[1750907403550,1.2381,2509.5,2508.4,0.818]
[1750907403754,1.4373,2509.5,2509.0,0.1992]
[1750907403906,0.42713,2509.4,2509.0,0.1992]
[1750907404726,1.049,2509.5,2509.0,0.1992]
[1750907405204,0.861,2509.8,2509.4,4.18421633]
[1750907405705,1.19397272,2509.8,2509.4,0.1992]
[1750907405907,1.19397272,2509.8,2509.3,0.1992]
[1750907406106,1.39317272,2509.8,2509.3,0.1992]
[1750907406642,15.17837428,2509.8,2509.2,0.1992]
[1750907406814,0.1992,2509.6,2509.2,0.1992]
[1750907407010,0.793,2509.5,2508.7,3.98607168]
[1750907407215,0.1992,2509.3,2508.9,0.1992]
[1750907407423,2.834,2509.2,2508.9,0.1992]
[1750907408121,0.8264,2509.1,2508.9,0.1992]
[1750907408346,0.1992,2509.0,2508.5,0.1992]
[1750907410052,0.8264,2509.1,2508.8,0.1992]
[1750907410814,0.8264,2509.1,2508.7,3.98607755]
[1750907411018,0.8264,2509.1,2508.1,3.98708185]
[1750907411019,0.8264,2509.1,2509.0,0.1992]
[1750907411314,0.8264,2509.1,2508.4,0.1992]
[1750907411315,0.1992,2508.9,2508.4,0.1992]
[1750907413749,0.8255,2508.9,2508.0,3.9871414]
[1750907414055,0.1992,2508.6,2508.2,0.1992]
[1750907414259,2.835,2508.5,2508.2,0.1992]
[1750907415358,0.1992,2508.6,2508.2,0.1992]
[1750907415541,2.835,2508.5,2508.2,0.1992]
[1750907416142,0.853,2508.4,2508.2,0.1992]
[1750907418238,1.24172,2508.4,2507.8,3.98744938]
[1750907418442,1.44092,2508.4,2508.0,0.1992]
[1750907419280,8.256,2508.3,2507.3,0.2204015]
[1750907419463,0.7922,2508.2,2507.4,3.98814023]
[1750907419778,0.7922,2508.2,2507.3,0.2204015]
[1750907419931,9.563,2508.4,2507.6,3.98779757]
[1750907420136,9.563,2508.4,2508.1,3.9869636]
[1750907420557,9.563,2508.4,2507.5,8.253]
[1750907420558,9.563,2508.4,2508.2,3.98690698]
[1750907420774,9.563,2508.4,2507.5,8.253]
[1750907420929,9.563,2508.4,2508.2,3.98683081]
[1750907421137,9.563,2508.4,2508.1,3.98704385]
[1750907421340,3.98537517,2509.2,2508.1,3.98704385]
[1750907421341,1.35935506,2509.7,2508.3,0.7967]
[1750907421638,2.836,2509.9,2509.5,3.98485754]
[1750907421639,0.33160655,2509.6,2509.5,3.98485754]
[1750907424369,0.33160655,2509.6,2509.2,8.247]
[1750907424864,0.33160655,2509.6,2509.5,3.98485754]
[1750907425034,0.8524,2509.5,2508.8,0.8708]
[1750907425236,2.835,2509.4,2509.0,3.98551941]
[1750907425447,0.36874,2509.3,2509.0,3.98551941]
[1750907425643,0.36874,2509.3,2508.7,3.98610119]
[1750907426069,0.36874,2509.3,2508.8,3.98596938]
[1750907426566,0.36874,2509.3,2508.6,3.98628624]
[1750907426567,0.8264,2509.2,2508.6,3.98628624]
[1750907426773,18.6204,2509.2,2508.4,3.98646946]
[1750907426938,1.898914,2509.1,2508.4,3.98646946]
[1750907427264,2.835,2509.0,2508.4,3.98646946]
[1750907427771,2.835,2508.9,2508.4,3.98646946]
[1750907428556,10.8264,2508.8,2507.6,15.31957167]
[1750907428754,1.36614,2508.7,2507.7,3.98771782]
[1750907428958,1.36614,2508.7,2508.1,3.9869505]
[1750907429158,1.36614,2508.7,2508.0,3.98721064]
[1750907429377,0.1992,2508.5,2508.1,0.1992]
[1750907429562,0.1992,2508.3,2507.9,0.1992]
[1750907429763,3.6406,2508.2,2507.9,4.18659687]
[1750907430081,3.6406,2508.2,2507.9,0.1992]
[1750907430253,0.38398,2508.1,2507.5,3.98803589]
[1750907430448,0.38398,2508.1,2507.7,0.1992]
[1750907430649,0.1992,2508.0,2507.6,0.1992]
[1750907431947,0.1992,2508.0,2507.6,4.18707657]
[1750907432175,0.1992,2508.0,2507.6,0.1992]
[1750907432342,2.763,2507.9,2507.6,0.1992]
[1750907432548,3.05922,2507.9,2507.6,0.1992]
[1750907434352,3.05922,2507.9,2507.4,3.98819494]
[1750907434551,3.25842,2507.9,2507.4,4.18739494]
[1750907434781,3.25842,2507.9,2507.5,3.98801265]
[1750907434959,3.25842,2507.9,2507.4,4.18733475]
[1750907435160,3.25842,2507.9,2507.4,0.1992]
[1750907435355,2.763,2507.8,2507.5,3.98787785]
[1750907435580,2.763,2507.8,2507.4,4.18734204]
[1750907435972,0.8692,2507.7,2507.4,0.1992]
[1750907436371,0.8692,2507.7,2507.3,0.2204015]
[1750907436572,0.1992,2507.6,2507.3,0.2204015]
[1750907437079,19.0662,2507.7,2507.3,0.2204015]
[1750907437256,0.1992,2507.5,2507.3,0.2204015]
[1750907437851,0.8692,2507.7,2507.3,0.2204015]
[1750907438052,0.8692,2507.7,2507.4,0.1992]
[1750907438283,0.56252,2507.6,2507.3,0.2204015]
[1750907438471,0.1992,2507.6,2507.3,4.20864558]
[1750907438879,0.1992,2507.6,2507.3,4.20871906]
[1750907439206,2.764,2507.5,2507.3,0.2204015]
[1750907439764,2.9632,2507.5,2507.3,0.2204015]
[1750907440686,0.8692,2507.7,2507.4,3.98819494]
[1750907440891,0.8692,2507.7,2507.4,4.18730136]
[1750907441275,0.8692,2507.7,2507.6,3.98787685]
[1750907441588,0.8692,2507.7,2507.5,3.98799554]
[1750907441975,0.1992,2507.8,2507.5,3.98797404]
[1750907442286,2.764,2507.7,2507.5,3.98797404]
[1750907442490,0.33297272,2507.8,2507.7,3.98771782]
[1750907443000,0.33297272,2507.8,2507.7,4.18691782]
[1750907443196,0.33297272,2507.8,2507.7,5.02301782]
[1750907443767,3.5678,2509.2,2509.0,3.98565165]
[1750907443978,3.5678,2509.2,2508.6,3.98628717]
[1750907443979,0.8038,2509.2,2508.6,3.98628717]
[1750907444179,2.764,2509.3,2508.6,3.98628717]
[1750907444404,2.764,2509.3,2509.0,0.1992]
[1750907444707,2.764,2509.3,2509.0,4.18474406]
[1750907444999,2.764,2509.3,2509.1,3.98548464]
[1750907445191,2.764,2509.3,2509.0,4.18480409]
[1750907445570,2.764,2509.3,2509.0,0.1992]
[1750907445770,0.8234,2509.2,2508.5,3.98633675]
[1750907445966,0.1992,2509.0,2508.6,0.1992]
[1750907446371,2.764,2508.9,2508.6,0.1992]
[1750907446874,2.764,2509.3,2508.4,3.98654839]
[1750907447076,2.764,2509.4,2509.0,4.18473875]
[1750907447293,0.37866,2509.3,2509.0,4.18473875]
[1750907447975,9.566,2509.6,2509.5,3.98485754]
[1750907448178,9.566,2509.6,2509.5,4.18405754]
[1750907448503,9.566,2509.6,2508.6,0.8147]
[1750907448705,9.566,2509.6,2509.5,3.98485754]
[1750907448907,9.566,2509.6,2509.5,4.18405754]
[1750907449807,0.1992,2509.9,2509.7,3.98453998]
[1750907450011,3.5773,2510.6,2510.0,3.98392738]
[1750907450175,3.5773,2510.6,2509.3,19.47687631]
[1750907450176,0.1984,2510.3,2509.9,0.1992]
[1750907450371,0.1984,2510.3,2509.3,19.47687631]
[1750907450372,0.1984,2510.3,2509.3,12.98082502]
[1750907450607,0.1992,2510.0,2509.5,0.1992]
[1750907450992,0.1992,2509.7,2509.2,0.1992]
[1750907451192,0.8521,2509.6,2509.0,3.98560799]
[1750907451374,0.36151,2509.5,2509.1,0.1992]
[1750907452324,0.36151,2509.5,2508.8,3.98593263]
[1750907452613,2.763,2509.4,2509.1,3.98548462]
[1750907452910,2.763,2509.4,2509.0,0.1992]
[1750907453107,2.763,2509.4,2509.0,4.1847957]
[1750907453308,3.32371,2509.5,2509.0,4.1847957]
[1750907453502,3.32371,2509.5,2509.0,0.1992]
[1750907453698,0.417581,2509.4,2509.0,0.1992]
[1750907454236,0.417581,2509.4,2509.0,4.18484018]
[1750907454519,2.9622,2509.5,2509.1,3.98533959]
[1750907455390,0.8521,2509.6,2509.1,3.98533959]
[1750907455611,2.763,2509.5,2509.2,0.1992]
[1750907455820,13.1378,2509.9,2509.0,0.8554]
[1750907456017,12.5242,2509.9,2509.4,0.1992]
[1750907456185,1.25242,2509.8,2509.4,0.1992]
[1750907456581,1.25242,2509.8,2509.4,4.18420083]
[1750907457099,1.25242,2509.8,2509.4,3.98500083]
[1750907457299,12.325,2509.9,2509.4,3.98489577]
[1750907457801,12.325,2509.9,2509.1,8.129]
[1750907457802,12.325,2509.9,2509.5,3.98484762]
[1750907458037,12.325,2509.9,2509.6,3.98466587]
[1750907458222,12.325,2509.9,2509.2,3.98533397]
[1750907458427,12.325,2509.9,2509.3,3.98502386]
[1750907458625,14.5575,2509.9,2509.1,8.129]
[1750907458824,12.325,2509.9,2509.5,3.98471644]
[1750907459048,12.325,2509.9,2509.4,3.98495308]
[1750907459363,12.325,2509.9,2509.6,3.98468302]
[1750907459861,9.562,2509.9,2509.2,3.98531426]
[1750907460022,9.562,2509.9,2509.5,3.98473762]
[1750907460221,10.7945,2509.9,2509.5,3.98473762]
[1750907460455,10.7945,2509.9,2509.6,3.98469109]
[1750907460825,10.7945,2509.9,2509.5,3.98480179]
[1750907461219,10.7945,2509.9,2509.1,12.11437175]
[1750907461558,10.7945,2509.9,2509.5,3.9848136]
[1750907462254,10.7945,2509.9,2509.5,3.98482998]
[1750907462458,1.07945,2509.8,2509.4,3.98497056]
[1750907463171,1.07945,2509.8,2509.1,12.11435868]
[1750907463373,1.07945,2509.8,2508.4,8.9152]
[1750907463374,0.8534,2509.7,2508.4,8.9152]
[1750907463530,0.8534,2509.7,2508.9,3.98578058]
[1750907463723,1.59173306,2509.6,2508.9,3.98578058]
[1750907463925,8.104,2509.5,2508.7,3.98602704]
[1750907464122,2.694,2509.4,2508.8,3.98595718]
[1750907464321,18.65898728,2508.9,2506.9,0.8383]
[1750907464668,0.8085,2508.0,2506.9,3.98898546]
[1750907464820,10.0,2507.8,2506.9,3.98898546]
[1750907465016,2.0794,2507.7,2506.9,3.98898546]
[1750907465220,2.0794,2507.7,2506.5,0.8383]
[1750907465221,0.8085,2508.0,2506.5,11.31937631]
[1750907465456,0.8085,2508.0,2506.9,8.098]
[1750907465673,0.8085,2508.0,2507.3,4.20863957]
[1750907466164,0.8085,2508.0,2507.3,4.54158042]
[1750907466358,0.8085,2508.0,2507.3,0.55334235]
[1750907466638,12.255,2508.1,2507.6,3.98786466]
[1750907467371,12.4542,2508.1,2507.6,4.18706466]
[1750907467772,13.77964,2508.1,2507.6,0.1992]
[1750907468145,9.7592,2508.1,2507.7,3.98759319]
[1750907468649,9.7592,2508.1,2507.6,4.18702652]
[1750907469375,9.7592,2508.1,2507.6,0.1992]
[1750907470848,9.7592,2508.1,2507.6,4.1870567]
[1750907471043,2.695,2508.0,2507.6,0.1992]
[1750907471459,9.7592,2508.1,2507.6,0.1992]
[1750907471771,0.97592,2508.0,2507.6,4.1870725]
[1750907471940,9.7592,2508.1,2507.6,0.1992]
[1750907472146,9.7592,2508.1,2507.6,4.18703463]
[1750907473077,9.7592,2508.1,2507.6,0.1992]
[1750907473879,9.7592,2508.1,2507.6,4.18697174]
[1750907474071,11.08464,2508.1,2507.6,4.18697174]
[1750907474793,11.08464,2508.1,2507.6,0.1992]
[1750907475170,4.82704082,2508.0,2507.3,0.55334235]
[1750907475365,10.0,2507.9,2507.3,0.55334235]
[1750907475569,0.8398,2507.5,2507.3,0.2204015]
[1750907476675,0.8238,2507.8,2507.4,3.98815865]
[1750907476877,0.8238,2507.8,2507.4,4.18735865]
[1750907477271,0.8238,2507.8,2507.4,0.1992]
[1750907477683,0.8238,2507.8,2507.4,4.18737316]
[1750907478288,0.8238,2507.8,2507.4,0.1992]
[1750907478586,0.8238,2507.8,2507.4,3.98816263]
[1750907478793,0.8238,2507.8,2507.6,0.1992]
[1750907479287,12.8952,2508.0,2507.6,0.1992]
[1750907479497,12.8952,2508.0,2507.6,4.18693891]
[1750907479990,12.8952,2508.0,2507.6,0.1992]
[1750907480378,2.8952,2508.0,2507.6,0.1992]
[1750907480584,2.8952,2508.0,2507.6,4.18706116]
[1750907480784,2.8952,2508.0,2507.6,0.1992]
[1750907480977,2.8952,2508.0,2507.6,4.18705617]
[1750907481177,2.8952,2508.0,2507.6,0.1992]
[1750907481395,2.8952,2508.0,2507.6,4.18706976]
[1750907481993,2.8952,2508.0,2507.6,0.1992]
[1750907482185,2.8952,2508.0,2507.6,4.18705315]
[1750907482567,2.8952,2508.0,2507.7,3.98768228]
[1750907482771,0.8322,2508.2,2507.9,3.98728391]
[1750907483000,0.8509,2508.5,2508.1,4.18623977]
[1750907483694,0.8509,2508.5,2508.1,0.1992]
[1750907483900,1.0501,2508.5,2508.1,0.1992]
[1750907484313,0.1992,2508.3,2507.8,0.1992]
[1750907484473,0.1992,2508.3,2507.7,0.1992]
[1750907484474,0.1992,2508.1,2507.7,0.1992]
[1750907485902,0.1992,2508.1,2507.9,3.98738703]
[1750907486079,2.8952,2508.3,2507.9,4.18658703]
[1750907486396,2.8952,2508.3,2507.9,0.1992]
[1750907486599,0.1992,2508.3,2507.9,4.18654828]
[1750907486801,0.1992,2508.3,2507.9,0.1992]
[1750907487103,1.57381,2508.3,2507.9,0.1992]
[1750907487971,1.37461,2508.3,2507.5,3.98797234]
[1750907488186,0.1992,2508.1,2507.7,0.1992]
[1750907488391,0.8591,2508.0,2507.3,4.20872474]
[1750907488625,0.8591,2508.0,2507.6,3.98778399]
[1750907488925,3.98635004,2508.6,2508.0,3.98724082]
[1750907488926,0.8418,2508.6,2508.0,3.98724082]
[1750907489125,0.8418,2508.6,2507.7,3.98771782]
[1750907489126,0.8418,2508.3,2507.3,0.2204015]
[1750907489427,10.0,2508.1,2507.6,3.98784244]
[1750907489595,1.30040256,2508.0,2507.5,3.98796869]
[1750907490224,1.30040256,2508.0,2507.4,3.98816059]
[1750907490910,0.30854949,2507.9,2507.4,3.98816059]
[1750907491106,0.30854949,2507.9,2507.3,0.2204015]
[1750907491313,0.8665,2507.8,2507.3,0.2204015]
[1750907491495,0.30854949,2507.7,2507.3,0.2204015]
[1750907491691,0.91990495,2507.7,2507.3,0.2204015]
[1750907492027,0.30886746,2507.6,2507.3,0.2204015]
[1750907492222,0.30886746,2507.5,2507.3,0.2204015]
[1750907492422,0.91990495,2507.7,2507.3,0.2204015]
[1750907492598,0.30932061,2507.6,2507.3,0.2204015]
[1750907492798,0.30932061,2507.5,2507.3,0.2204015]
[1750907493028,0.30932061,2507.4,2507.3,0.2204015]
[1750907493928,2.634,2508.0,2507.4,3.98804433]
[1750907494127,2.634,2508.0,2507.3,0.2204015]
[1750907494128,0.30976427,2507.9,2507.3,0.2204015]
[1750907494426,0.30976427,2507.8,2507.5,3.98787774]
[1750907494632,0.30976427,2507.7,2507.5,3.98803589]
[1750907494813,0.30976427,2507.6,2507.4,3.98819494]
[1750907495018,14.45425881,2508.1,2507.5,3.98799349]
[1750907495316,2.71179383,2508.0,2507.5,3.98799349]
[1750907495517,0.30976795,2507.9,2507.5,3.98799349]
[1750907495714,0.30976795,2507.8,2507.4,3.98814366]
[1750907496023,0.30976795,2507.7,2507.4,3.98814366]
[1750907496227,0.30976795,2507.6,2507.4,3.98814366]
[1750907496526,0.30976795,2507.5,2507.4,3.98814366]
[1750907496833,0.30976795,2507.5,2507.3,0.2204015]
[1750907496834,13.98819494,2507.4,2507.3,0.2204015]
[1750907497004,10.0,2507.2,2506.2,4.78608229]
[1750907497194,0.30976795,2507.1,2506.4,3.98976275]
[1750907497392,0.30976795,2507.0,2506.4,3.98976275]
[1750907497621,0.30976795,2506.9,2506.4,3.98976275]
[1750907497821,10.95377535,2507.2,2506.3,3.98988709]
[1750907497822,0.30976795,2506.8,2506.3,3.98988709]
[1750907498027,0.30976795,2506.7,2506.3,3.98988709]
[1750907498237,0.30976795,2506.6,2506.3,3.98988709]
[1750907498426,10.95377535,2507.2,2506.3,3.98988709]
[1750907498627,2.11861613,2507.1,2506.3,3.98988709]
[1750907498815,0.30932785,2507.0,2506.3,3.98988709]
[1750907499024,0.50852785,2506.9,2506.4,0.1992]
[1750907499374,0.50852785,2506.9,2506.0,8.008]
[1750907499375,0.8148,2506.7,2505.8,0.8085]
[1750907499559,0.50852785,2506.6,2506.2,0.1992]
[1750907499717,0.8148,2506.7,2506.2,3.98996852]
[1750907500055,0.30906964,2506.6,2506.4,0.1992]
[1750907500213,1.15978,2506.7,2506.4,0.1992]
[1750907500418,0.30906964,2506.6,2506.4,0.1992]
[1750907500621,1.15978,2506.7,2506.4,0.1992]
[1750907500822,0.3089178,2506.6,2506.4,0.1992]
[1750907501060,1.15978,2506.7,2506.4,0.1992]
[1750907501226,0.3089178,2506.6,2506.4,0.1992]
[1750907501428,1.15978,2506.7,2506.4,0.1992]
[1750907501629,0.30878013,2506.6,2506.4,4.18889969]
[1750907501829,0.8148,2506.7,2506.4,4.18889969]
[1750907502165,0.30878021,2506.6,2506.5,3.98962696]
[1750907502456,0.30869489,2506.8,2506.5,3.98950509]
[1750907502658,0.30869489,2506.7,2506.6,3.98945706]
[1750907502839,0.8681,2507.0,2506.7,4.18839373]
[1750907503255,0.30869671,2506.9,2506.7,0.1992]
[1750907503571,0.8681,2507.0,2506.7,4.18849097]
[1750907503769,0.30865463,2506.9,2506.7,4.18849097]
[1750907503975,1.97483,2507.0,2506.7,4.18849097]
[1750907504161,0.30865449,2506.9,2506.7,4.18849097]
[1750907504358,0.3086535,2506.8,2506.7,4.18849097]
[1750907504875,0.3086535,2506.8,2506.5,0.1992]
[1750907505074,0.1992,2506.9,2506.6,3.98935797]
[1750907505388,0.1992,2506.9,2506.8,3.98914951]
[1750907505546,0.30857032,2506.9,2506.6,4.18851376]
[1750907505746,0.8681,2507.0,2506.6,4.18851376]
[1750907505949,0.30857001,2506.9,2506.7,3.98928488]
[1750907506275,0.8681,2507.0,2506.7,3.98928488]
[1750907506475,0.30852902,2506.9,2506.7,3.98928488]
[1750907506667,1.97483,2507.0,2506.7,3.98928488]
[1750907506890,0.30852828,2506.9,2506.7,3.98928488]
[1750907507054,1.97483,2507.0,2506.8,3.98914951]
[1750907507251,0.30852984,2506.9,2506.7,3.9892471]
[1750907507452,1.97483,2507.0,2506.7,3.9892471]
[1750907507768,1.10673,2507.0,2506.8,3.98909576]
[1750907508286,1.10673,2507.0,2506.9,3.98899038]
[1750907508447,7.81,2507.8,2506.7,3.9891563]
[1750907508448,0.8437,2507.9,2506.8,3.98914951]
[1750907508649,0.3085009,2507.8,2507.7,3.98771782]
[1750907509059,0.1992,2507.9,2507.8,3.98755881]
[1750907509260,0.50770434,2507.9,2507.7,3.98765357]
[1750907509556,0.1992,2507.9,2507.7,3.98765357]
[1750907510180,0.1992,2507.9,2507.8,3.98755881]
[1750907510386,0.50769746,2507.9,2507.8,3.98755881]
[1750907511250,0.1992,2508.3,2507.9,3.98739757]
[1750907511581,0.30848274,2508.2,2507.9,3.98739757]
[1750907511779,0.48262,2508.3,2508.0,3.98724082]
[1750907512088,0.30846257,2508.2,2508.1,3.98708185]
[1750907512578,0.1992,2508.3,2508.2,3.98692289]
[1750907512975,0.30843853,2508.6,2508.2,3.98692289]
[1750907513170,0.50763853,2508.5,2508.0,0.1992]
[1750907513485,2.635,2508.8,2507.1,3.98860227]
[1750907513486,0.8308,2508.3,2507.1,3.98860227]
[1750907513688,0.1992,2507.8,2507.4,3.98807653]
[1750907513857,0.1992,2507.8,2507.5,3.98802771]
[1750907514183,0.1992,2507.8,2507.6,3.98776661]
[1750907514583,0.1992,2507.8,2507.7,3.98771782]
[1750907514788,2.635,2508.2,2507.7,0.1992]
[1750907514955,3.74893219,2508.2,2508.0,3.98720189]
[1750907515150,1.11393219,2508.2,2508.1,3.98708185]
[1750907515479,0.3085254,2508.2,2508.1,3.98708185]
[1750907515676,0.8308,2507.7,2506.7,3.98915663]
[1750907515891,0.8308,2507.4,2506.0,8.8085]
[1750907516088,0.8308,2507.2,2506.4,3.98975614]
[1750907516403,0.3085254,2507.1,2506.4,3.98965955]
[1750907516556,0.3085254,2507.0,2506.4,3.98965955]
[1750907516752,0.3085254,2506.9,2506.4,3.98965955]
[1750907517085,0.3085254,2507.1,2506.4,3.98965955]
[1750907517285,0.3085254,2507.1,2506.6,3.98936671]
[1750907517286,0.3085254,2507.0,2506.6,3.98936671]
[1750907517486,0.30853701,2507.0,2506.6,3.98936671]
[1750907517687,0.22774054,2507.1,2506.5,3.98959509]
[1750907517888,0.8385,2506.9,2505.5,0.8599]
[1750907518199,0.30853644,2506.8,2506.1,3.99021145]
[1750907518399,0.30853644,2506.7,2506.1,3.99021145]
[1750907518566,0.30853644,2506.6,2506.1,3.99021145]
[1750907518765,0.8385,2506.9,2506.1,3.99021145]
[1750907518766,0.30853644,2506.8,2506.1,3.99021145]
[1750907518978,0.30853644,2506.7,2506.1,3.99021145]
[1750907519186,0.30853644,2506.6,2506.1,3.99021145]
[1750907519481,0.30853644,2506.8,2506.1,3.99021145]
[1750907519684,0.30853644,2506.7,2506.1,3.99021145]
[1750907520002,0.30853644,2506.6,2506.2,3.99010332]
[1750907520300,0.30853644,2506.8,2506.1,3.99021538]
[1750907520501,0.30853644,2506.7,2506.2,3.99009517]
[1750907520669,0.30853644,2506.6,2506.2,3.99009517]
[1750907520995,0.30853644,2506.8,2506.0,3.99031995]
[1750907521204,0.30853644,2506.7,2506.0,3.99031995]
[1750907521495,0.30853644,2506.6,2506.1,3.99025255]
[1750907521694,0.30853644,2506.8,2506.2,3.99004418]
[1750907521866,0.30853644,2506.7,2506.2,3.99004418]
[1750907522066,0.30853644,2506.6,2506.3,3.98990149]
[1750907522262,0.8385,2506.9,2506.6,3.98946221]
[1750907522763,0.8385,2506.9,2506.7,3.98929253]
[1750907523104,0.77708105,2506.9,2506.7,3.98929253]
[1750907524074,0.77708105,2506.9,2506.5,3.98961243]
[1750907524269,0.8677,2507.2,2506.7,3.9892101]
[1750907524468,0.8677,2507.2,2506.5,3.98961243]
[1750907524469,1.1759973,2507.2,2506.6,3.98942036]
[1750907525097,0.3082973,2507.1,2506.6,3.98942036]
[1750907525471,1.1759973,2507.2,2506.6,3.98942036]
[1750907525697,0.1992,2507.1,2506.6,4.18862036]
[1750907526035,1.64501703,2507.1,2506.6,4.18862036]
[1750907526201,0.1992,2507.1,2506.6,4.18862036]
[1750907526612,0.50761642,2507.1,2506.6,4.18862036]
[1750907527022,0.50761827,2507.1,2506.6,4.18862036]
[1750907527914,0.50761827,2507.1,2506.6,0.1992]
[1750907528102,0.50761827,2507.1,2506.6,4.18864453]
[1750907528928,0.50761827,2507.1,2506.6,0.1992]
[1750907529322,0.30841827,2507.0,2506.6,0.1992]
[1750907529522,0.8677,2507.2,2506.1,0.8101]
[1750907529523,0.30841827,2506.9,2506.1,0.8101]
[1750907529725,1.0143,2506.7,2506.3,0.1992]
[1750907529923,0.30841827,2506.6,2506.3,0.1992]
[1750907531018,1.15531827,2506.5,2505.5,0.8684]
[1750907531224,0.1992,2506.3,2505.9,0.1992]
[1750907531401,0.30841827,2506.2,2505.9,0.1992]
[1750907531602,0.50761827,2506.3,2505.9,0.1992]
[1750907532130,0.30841827,2506.3,2505.5,0.8684]
[1750907532319,10.0,2506.8,2506.3,3.98989697]
[1750907532519,1.64750382,2506.7,2506.2,3.9900732]
[1750907532731,1.33917,2506.7,2506.2,3.9900732]
[1750907533117,1.33917,2506.7,2506.2,3.99007452]
[1750907533326,1.33917,2506.7,2506.1,3.99023556]
[1750907533641,0.30830076,2506.6,2505.8,11.89770933]
[1750907533850,1.47304784,2506.6,2506.0,3.99031908]
[1750907534051,1.16474708,2506.6,2506.0,3.99031908]
[1750907534342,1.16474708,2506.6,2506.1,3.99021769]
[1750907534915,1.16474708,2506.6,2506.0,3.99035841]
[1750907535419,1.16474708,2506.6,2506.1,3.99023813]
[1750907535618,0.25039171,2506.5,2506.1,3.99023813]
[1750907535918,1.16474708,2506.6,2506.1,3.99023813]
[1750907536846,1.16474708,2506.6,2505.8,7.904]
[1750907537148,1.16474708,2506.6,2506.3,3.9899365]
[1750907537352,1.16474708,2506.6,2506.2,3.99007939]
[1750907537549,1.16474708,2506.6,2506.3,3.98991915]
[1750907538251,1.16474708,2506.6,2506.2,3.99006075]
[1750907539117,1.16474708,2506.6,2506.3,3.98991833]
[1750907539342,1.16474708,2506.6,2506.3,3.98980711]
[1750907540958,1.16474708,2506.6,2506.3,3.98994286]
[1750907541123,1.16474708,2506.6,2506.2,3.99004537]
[1750907541464,1.16474708,2506.6,2506.3,3.98990089]
[1750907541760,1.16474708,2506.6,2506.3,3.98984888]
[1750907541925,1.16474708,2506.6,2506.0,3.99042298]
[1750907542245,1.36394708,2506.6,2506.1,0.1992]
[1750907542435,0.30865018,2506.5,2506.2,3.99009568]
[1750907542636,1.36394708,2506.6,2506.2,3.99009568]
[1750907542835,1.36394708,2506.6,2506.1,0.1992]
[1750907543037,0.30865122,2506.5,2506.1,0.1992]
[1750907543218,0.8512,2506.5,2506.1,0.1992]
[1750907543420,0.53018299,2506.4,2506.1,0.1992]
[1750907543620,0.30866828,2506.3,2506.1,0.1992]
[1750907543951,0.30899451,2506.2,2505.4,0.837]
[1750907544150,1.12139451,2506.1,2505.7,0.1992]
[1750907544479,0.50819451,2506.0,2505.7,0.1992]
[1750907544748,0.69875396,2505.9,2505.7,0.1992]
[1750907544953,0.38975945,2505.9,2505.7,0.1992]
[1750907545345,0.3095575,2505.8,2505.7,0.1992]
[1750907545552,0.3095575,2505.8,2505.7,4.19010074]
[1750907545856,0.1992,2506.2,2505.7,0.1992]
[1750907546153,0.8604,2506.4,2506.3,3.98994533]
[1750907546328,0.30956382,2506.4,2506.3,3.98994533]
[1750907547247,0.30956382,2506.4,2506.2,3.99005607]
[1750907547454,0.30956382,2506.3,2506.2,3.99005607]
[1750907548145,0.30956382,2506.3,2506.1,0.1992]
[1750907548363,0.30956382,2506.2,2506.1,0.1992]
[1750907549642,7.32313962,2506.7,2506.1,0.1992]
[1750907549881,0.1992,2506.5,2506.1,0.1992]
[1750907551764,2.577,2506.6,2506.2,0.1992]
[1750907552339,0.1992,2506.7,2506.2,0.1992]
[1750907552548,2.7192,2506.7,2506.2,0.1992]
[1750907552855,3.5164,2506.7,2506.2,0.1992]
[1750907553251,5.65344,2506.7,2506.2,0.1992]
[1750907553669,6.60742912,2506.7,2506.2,0.1992]
[1750907554057,6.40822912,2506.7,2505.9,3.99055349]
[1750907554257,0.55,2506.6,2505.7,3.99082151]